[Event "*** Titled Tuesday Blitz"]
[Site "Chess.com"]
[Date "2020.10.20"]
[Round "9"]
[White "catzapto"]
[Black "ZverevLev"]
[Result "0-1"]
[WhiteElo "2133"]
[BlackElo "2253"]
[TimeControl "180+1"]
[EndTime "11:48:56 PDT"]
[Termination "ZverevLev won by checkmate"]

1. e4 {[%clk 0:03:00.9]} 1... e5 {[%clk 0:02:53.5]} 2. Nf3 {[%clk 0:03:01]} 2...
Nc6 {[%clk 0:02:52.2]} 3. d4 {[%clk 0:03:01.2]} 3... exd4 {[%clk 0:02:48.2]} 4.
Bc4 {[%clk 0:03:01]} 4... Bc5 {[%clk 0:02:48.8]} 5. c3 {[%clk 0:02:59.1]} 5...
Nf6 {[%clk 0:02:41.2]} 6. cxd4 {[%clk 0:02:31.6]} 6... Bb4+ {[%clk 0:02:39.9]}
7. Nc3 {[%clk 0:02:32.1]} 7... Nxe4 {[%clk 0:02:38.1]} 8. O-O {[%clk 0:02:32.5]}
8... Bxc3 {[%clk 0:02:36.6]} 9. bxc3 {[%clk 0:02:33.4]} 9... d5 {[%clk
0:02:32.4]} 10. Re1 {[%clk 0:02:19.3]} 10... O-O {[%clk 0:02:30.3]} 11. Qc2
{[%clk 0:02:12.5]} 11... dxc4 {[%clk 0:02:26.8]} 12. Qxe4 {[%clk 0:02:09.5]}
12... Bd7 {[%clk 0:02:22.1]} 13. Bg5 {[%clk 0:01:56.6]} 13... f6 {[%clk
0:02:20]} 14. Qd5+ {[%clk 0:01:53]} 14... Kh8 {[%clk 0:02:18.2]} 15. Bh4 {[%clk
0:01:47.9]} 15... b5 {[%clk 0:02:12.9]} 16. Qxb5 {[%clk 0:01:36.2]} 16... Nxd4
{[%clk 0:02:07.3]} 17. Qxc4 {[%clk 0:01:36]} 17... Nxf3+ {[%clk 0:02:05.9]} 18.
gxf3 {[%clk 0:01:36.9]} 18... Bf5 {[%clk 0:02:01.1]} 19. Rad1 {[%clk 0:01:32]}
19... Qc8 {[%clk 0:02:01.1]} 20. Bg3 {[%clk 0:01:29.2]} 20... c6 {[%clk
0:01:59.2]} 21. Rd6 {[%clk 0:01:14.7]} 21... c5 {[%clk 0:01:54.8]} 22. Re7
{[%clk 0:00:55.1]} 22... Rb8 {[%clk 0:01:51.4]} 23. h4 {[%clk 0:00:33.2]} 23...
Rb1+ {[%clk 0:01:49.4]} 24. Kh2 {[%clk 0:00:33.4]} 24... Qa8 {[%clk 0:01:43.7]}
25. Qd5 {[%clk 0:00:27.7]} 25... Qc8 {[%clk 0:01:29.3]} 26. Qc6 {[%clk
0:00:27.4]} 26... h5 {[%clk 0:01:17.8]} 27. Qxc8 {[%clk 0:00:17.9]} 27... Rxc8
{[%clk 0:01:18.7]} 28. Rd5 {[%clk 0:00:17.4]} 28... g6 {[%clk 0:01:15.2]} 29.
Bd6 {[%clk 0:00:17.5]} 29... Rd8 {[%clk 0:01:09.1]} 30. c4 {[%clk 0:00:14.5]}
30... Rc1 {[%clk 0:01:06.6]} 31. Bc7 {[%clk 0:00:06.7]} 31... Rc8 {[%clk
0:01:02.6]} 32. Rd8+ {[%clk 0:00:06]} 32... Rxd8 {[%clk 0:00:59.2]} 33. Bxd8
{[%clk 0:00:06.9]} 33... Rxc4 {[%clk 0:00:57.7]} 34. Rxa7 {[%clk 0:00:07.8]}
34... Rxh4+ {[%clk 0:00:57.2]} 35. Kg1 {[%clk 0:00:07.1]} 35... Rc4 {[%clk
0:00:58.1]} 36. Bxf6+ {[%clk 0:00:07.1]} 36... Kg8 {[%clk 0:00:58.3]} 37. Rg7+
{[%clk 0:00:07.5]} 37... Kf8 {[%clk 0:00:58.5]} 38. Rc7 {[%clk 0:00:08.4]} 38...
Rc1+ {[%clk 0:00:58.2]} 39. Kh2 {[%clk 0:00:08.1]} 39... c4 {[%clk 0:00:59.1]}
40. a4 {[%clk 0:00:08.6]} 40... Rc2 {[%clk 0:00:54.9]} 41. a5 {[%clk 0:00:09.5]}
41... Rxf2+ {[%clk 0:00:54.7]} 42. Kg3 {[%clk 0:00:10.1]} 42... Ra2 {[%clk
0:00:55]} 43. Rxc4 {[%clk 0:00:10.1]} 43... Rxa5 {[%clk 0:00:54.3]} 44. Rc7
{[%clk 0:00:10.3]} 44... Be6 {[%clk 0:00:51.9]} 45. Bg7+ {[%clk 0:00:11.2]}
45... Kg8 {[%clk 0:00:51.1]} 46. f4 {[%clk 0:00:11.3]} 46... Ra3+ {[%clk
0:00:50.3]} 47. Kf2 {[%clk 0:00:10.1]} 47... Bd5 {[%clk 0:00:49.5]} 48. Bh6
{[%clk 0:00:10.5]} 48... Rf3+ {[%clk 0:00:48.4]} 49. Ke2 {[%clk 0:00:11.1]}
49... Rg3 {[%clk 0:00:48.1]} 50. Kf2 {[%clk 0:00:10.3]} 50... Rg2+ {[%clk
0:00:46.7]} 51. Ke3 {[%clk 0:00:10.8]} 51... h4 {[%clk 0:00:47]} 52. Kd4 {[%clk
0:00:10.7]} 52... h3 {[%clk 0:00:43.5]} 53. Kxd5 {[%clk 0:00:09.3]} 53... h2
{[%clk 0:00:43.7]} 54. Ke6 {[%clk 0:00:03.5]} 54... h1=Q {[%clk 0:00:40.3]} 55.
Kf6 {[%clk 0:00:04]} 55... Qa1+ {[%clk 0:00:38.8]} 56. Ke7 {[%clk 0:00:03.1]}
56... Re2+ {[%clk 0:00:36.6]} 57. Kd8 {[%clk 0:00:03.6]} 57... Qf6+ {[%clk
0:00:34]} 58. Kc8 {[%clk 0:00:03.4]} 58... Re8+ {[%clk 0:00:30.5]} 59. Kb7
{[%clk 0:00:03.1]} 59... Re7 {[%clk 0:00:31.4]} 60. Bg5 {[%clk 0:00:02.7]} 60...
Rxc7+ {[%clk 0:00:30.4]} 61. Kxc7 {[%clk 0:00:03.6]} 61... Qd4 {[%clk
0:00:29.9]} 62. Kc6 {[%clk 0:00:03.6]} 62... Kf7 {[%clk 0:00:29.8]} 63. Kb5
{[%clk 0:00:04]} 63... Ke6 {[%clk 0:00:29.9]} 64. Kc6 {[%clk 0:00:04.9]} 64...
Qc4+ {[%clk 0:00:28.4]} 65. Kb7 {[%clk 0:00:04.9]} 65... Kd6 {[%clk 0:00:29.3]}
66. Ka8 {[%clk 0:00:04.8]} 66... Kc7 {[%clk 0:00:28.7]} 67. Bd8+ {[%clk
0:00:05]} 67... Kxd8 {[%clk 0:00:27.7]} 68. f5 {[%clk 0:00:04.8]} 68... Kc7
{[%clk 0:00:27.8]} 69. fxg6 {[%clk 0:00:04.9]} 69... Qa6# {[%clk 0:00:28.3]} 0-1

[Event "*** Titled Tuesday Blitz"]
[Site "Chess.com"]
[Date "2020.10.20"]
[Round "9"]
[White "German_Bazeev"]
[Black "platy3"]
[Result "0-1"]
[WhiteElo "2712"]
[BlackElo "2830"]
[TimeControl "180+1"]
[EndTime "11:48:58 PDT"]
[Termination "platy3 won by resignation"]

1. d4 {[%clk 0:03:00.9]} 1... Nf6 {[%clk 0:02:58.5]} 2. Nf3 {[%clk 0:03:00.8]}
2... d5 {[%clk 0:02:58.3]} 3. c4 {[%clk 0:03:00.7]} 3... e6 {[%clk 0:02:58.6]}
4. g3 {[%clk 0:03:00.7]} 4... dxc4 {[%clk 0:02:54.2]} 5. Bg2 {[%clk 0:03:00.3]}
5... a6 {[%clk 0:02:54.7]} 6. Ne5 {[%clk 0:02:59.8]} 6... Bb4+ {[%clk
0:02:53.3]} 7. Nc3 {[%clk 0:02:59.7]} 7... Nd5 {[%clk 0:02:53.4]} 8. Bd2 {[%clk
0:02:59.9]} 8... Nb6 {[%clk 0:02:53.2]} 9. e3 {[%clk 0:02:54.9]} 9... N8d7
{[%clk 0:02:52.8]} 10. Nxd7 {[%clk 0:02:53.2]} 10... Qxd7 {[%clk 0:02:50.2]} 11.
Ne4 {[%clk 0:02:53.4]} 11... Qb5 {[%clk 0:02:34.6]} 12. O-O {[%clk 0:02:47.7]}
12... O-O {[%clk 0:02:33.1]} 13. Bxb4 {[%clk 0:02:25]} 13... Qxb4 {[%clk
0:02:33.1]} 14. Qd2 {[%clk 0:02:25.7]} 14... a5 {[%clk 0:02:19.6]} 15. Rac1
{[%clk 0:02:12.1]} 15... Bd7 {[%clk 0:02:12.3]} 16. a3 {[%clk 0:02:10]} 16...
Qxd2 {[%clk 0:02:04.8]} 17. Nxd2 {[%clk 0:02:10.9]} 17... Bb5 {[%clk 0:02:05.3]}
18. Rfd1 {[%clk 0:02:07.4]} 18... c6 {[%clk 0:02:01.5]} 19. Bf1 {[%clk
0:02:05.4]} 19... Ra6 {[%clk 0:01:56.1]} 20. Nxc4 {[%clk 0:02:01.7]} 20... Nxc4
{[%clk 0:01:54.9]} 21. Bxc4 {[%clk 0:02:02.6]} 21... Rb6 {[%clk 0:01:54.4]} 22.
Ba2 {[%clk 0:01:56.6]} 22... Be2 {[%clk 0:01:51.5]} 23. Rd2 {[%clk 0:01:56.1]}
23... Bf3 {[%clk 0:01:52.1]} 24. Rc5 {[%clk 0:01:53.8]} 24... Ra8 {[%clk
0:01:51.5]} 25. h3 {[%clk 0:01:51.7]} 25... h5 {[%clk 0:01:49.2]} 26. Bc4 {[%clk
0:01:39.3]} 26... g6 {[%clk 0:01:45.1]} 27. Be2 {[%clk 0:01:35.4]} 27... Bd5
{[%clk 0:01:39.1]} 28. f3 {[%clk 0:01:24]} 28... Bb3 {[%clk 0:01:34.2]} 29. Kf2
{[%clk 0:01:21.9]} 29... Kf8 {[%clk 0:01:30.6]} 30. e4 {[%clk 0:01:19.5]} 30...
Ke7 {[%clk 0:01:30.7]} 31. Ke3 {[%clk 0:01:19.6]} 31... a4 {[%clk 0:01:28.7]}
32. h4 {[%clk 0:01:18.9]} 32... Rd8 {[%clk 0:01:13.1]} 33. Rc3 {[%clk
0:01:18.4]} 33... Ra8 {[%clk 0:01:06]} 34. Rc5 {[%clk 0:01:11.6]} 34... Rd8
{[%clk 0:01:05.7]} 35. Ra5 {[%clk 0:01:11.2]} 35... Kd6 {[%clk 0:01:01.8]} 36.
g4 {[%clk 0:01:06]} 36... hxg4 {[%clk 0:00:59.7]} 37. fxg4 {[%clk 0:01:06.9]}
37... Ke7 {[%clk 0:00:57]} 38. h5 {[%clk 0:01:06.4]} 38... gxh5 {[%clk
0:00:57.3]} 39. gxh5 {[%clk 0:01:07.3]} 39... Rg8 {[%clk 0:00:57.6]} 40. Bf3
{[%clk 0:01:04.1]} 40... Rg3 {[%clk 0:00:54.4]} 41. Kf4 {[%clk 0:00:46.5]} 41...
Rg8 {[%clk 0:00:49.6]} 42. h6 {[%clk 0:00:44.3]} 42... Ra6 {[%clk 0:00:31.9]}
43. Rxa6 {[%clk 0:00:42.4]} 43... bxa6 {[%clk 0:00:32.8]} 44. e5 {[%clk
0:00:29.2]} 44... Rh8 {[%clk 0:00:29.7]} 45. Rh2 {[%clk 0:00:26.8]} 45... Bd5
{[%clk 0:00:29.6]} 46. Bxd5 {[%clk 0:00:25.4]} 46... cxd5 {[%clk 0:00:29.4]} 47.
h7 {[%clk 0:00:24.6]} 47... Kf8 {[%clk 0:00:29.7]} 48. Kg5 {[%clk 0:00:24.5]}
48... Kg7 {[%clk 0:00:30]} 49. Rh3 {[%clk 0:00:24.6]} 49... Rxh7 {[%clk
0:00:22.2]} 50. Rxh7+ {[%clk 0:00:24.3]} 50... Kxh7 {[%clk 0:00:23.1]} 51. Kf6
{[%clk 0:00:25]} 51... Kg8 {[%clk 0:00:23.5]} 52. Ke7 {[%clk 0:00:25.4]} 52...
Kg7 {[%clk 0:00:23.5]} 53. Kd7 {[%clk 0:00:18.6]} 53... f5 {[%clk 0:00:12.2]}
54. Kxe6 {[%clk 0:00:17.9]} 54... f4 {[%clk 0:00:12.8]} 55. Kd7 {[%clk
0:00:17.5]} 55... f3 {[%clk 0:00:13.3]} 56. e6 {[%clk 0:00:18]} 56... f2 {[%clk
0:00:13.9]} 57. e7 {[%clk 0:00:18.8]} 57... f1=Q {[%clk 0:00:14.6]} 58. e8=Q
{[%clk 0:00:19.7]} 58... Qb5+ {[%clk 0:00:15]} 59. Ke7 {[%clk 0:00:18.5]} 59...
Qxe8+ {[%clk 0:00:09]} 60. Kxe8 {[%clk 0:00:18.7]} 60... Kf6 {[%clk 0:00:09.9]}
61. Kd7 {[%clk 0:00:18.4]} 61... Kf5 {[%clk 0:00:10.5]} 62. Kd6 {[%clk
0:00:09.1]} 62... Ke4 {[%clk 0:00:10.8]} 63. Kc5 {[%clk 0:00:09.7]} 63... a5
{[%clk 0:00:11.2]} 64. Kb5 {[%clk 0:00:10.2]} 64... Kxd4 {[%clk 0:00:11.3]} 65.
Kxa4 {[%clk 0:00:10.6]} 65... Kc4 {[%clk 0:00:07.3]} 66. b4 {[%clk 0:00:11.5]}
66... d4 {[%clk 0:00:06.1]} 67. bxa5 {[%clk 0:00:10.8]} 67... d3 {[%clk
0:00:06.6]} 68. a6 {[%clk 0:00:11.7]} 0-1

[Event "*** Titled Tuesday Blitz"]
[Site "Chess.com"]
[Date "2020.10.20"]
[Round "9"]
[White "ajedrezhoy"]
[Black "Das_Virus_2020"]
[Result "0-1"]
[WhiteElo "2223"]
[BlackElo "2429"]
[TimeControl "180+1"]
[EndTime "11:48:59 PDT"]
[Termination "Das_Virus_2020 won on time"]

1. d4 {[%clk 0:03:00.9]} 1... Nf6 {[%clk 0:02:59.2]} 2. Bg5 {[%clk 0:02:57.7]}
2... e6 {[%clk 0:02:53.7]} 3. e4 {[%clk 0:02:55.8]} 3... Be7 {[%clk 0:02:52.9]}
4. Nd2 {[%clk 0:02:52.9]} 4... d5 {[%clk 0:02:52.3]} 5. e5 {[%clk 0:02:23.3]}
5... Nfd7 {[%clk 0:02:51.7]} 6. Bxe7 {[%clk 0:02:22.5]} 6... Qxe7 {[%clk
0:02:50.4]} 7. Bd3 {[%clk 0:02:22.2]} 7... c5 {[%clk 0:02:50.3]} 8. c3 {[%clk
0:02:22.2]} 8... Nc6 {[%clk 0:02:47]} 9. Ne2 {[%clk 0:02:21.9]} 9... f6 {[%clk
0:02:30.1]} 10. exf6 {[%clk 0:02:19.1]} 10... Nxf6 {[%clk 0:02:31]} 11. Nf3
{[%clk 0:02:18.7]} 11... O-O {[%clk 0:02:30.3]} 12. O-O {[%clk 0:02:18]} 12...
Bd7 {[%clk 0:02:30]} 13. Re1 {[%clk 0:02:16]} 13... Rae8 {[%clk 0:02:23.3]} 14.
Nf4 {[%clk 0:02:01.6]} 14... Qd6 {[%clk 0:02:21.6]} 15. Ne5 {[%clk 0:01:55.5]}
15... Re7 {[%clk 0:01:48.3]} 16. Re3 {[%clk 0:01:44.2]} 16... Be8 {[%clk
0:01:36.9]} 17. Rh3 {[%clk 0:01:35.2]} 17... Nxe5 {[%clk 0:01:18.2]} 18. dxe5
{[%clk 0:01:33]} 18... Qxe5 {[%clk 0:01:17.4]} 19. Qd2 {[%clk 0:01:28.7]} 19...
Ne4 {[%clk 0:01:00.8]} 20. Bxe4 {[%clk 0:01:26.9]} 20... Qxe4 {[%clk 0:01:00]}
21. Nd3 {[%clk 0:01:20.1]} 21... Bg6 {[%clk 0:00:50]} 22. Re1 {[%clk 0:01:17.9]}
22... Qa4 {[%clk 0:00:29.9]} 23. Nxc5 {[%clk 0:01:15.1]} 23... Qc6 {[%clk
0:00:27.2]} 24. Nd3 {[%clk 0:01:13.6]} 24... Bxd3 {[%clk 0:00:22.7]} 25. Qxd3
{[%clk 0:01:10.6]} 25... g6 {[%clk 0:00:23]} 26. Rhe3 {[%clk 0:01:09.2]} 26...
Rf6 {[%clk 0:00:18.9]} 27. Qe2 {[%clk 0:01:07]} 27... a6 {[%clk 0:00:17.4]} 28.
g3 {[%clk 0:01:06.9]} 28... Kg7 {[%clk 0:00:16.6]} 29. f4 {[%clk 0:01:06.6]}
29... b5 {[%clk 0:00:14.7]} 30. Re5 {[%clk 0:01:03.9]} 30... Qc5+ {[%clk
0:00:12.3]} 31. Qe3 {[%clk 0:01:03.4]} 31... Qxe3+ {[%clk 0:00:11.7]} 32. R1xe3
{[%clk 0:01:03]} 32... Kf7 {[%clk 0:00:12.2]} 33. h4 {[%clk 0:01:02.2]} 33...
Rc7 {[%clk 0:00:10.9]} 34. Rd3 {[%clk 0:01:00.2]} 34... Rf5 {[%clk 0:00:10.5]}
35. Rxf5+ {[%clk 0:00:55.6]} 35... gxf5 {[%clk 0:00:11.4]} 36. Kf2 {[%clk
0:00:54.2]} 36... Rc4 {[%clk 0:00:10.6]} 37. b3 {[%clk 0:00:48.4]} 37... Re4
{[%clk 0:00:10.5]} 38. Rd1 {[%clk 0:00:27.1]} 38... h5 {[%clk 0:00:10.1]} 39.
Ra1 {[%clk 0:00:24.6]} 39... Ke7 {[%clk 0:00:10]} 40. a4 {[%clk 0:00:22.4]}
40... b4 {[%clk 0:00:10.3]} 41. Rc1 {[%clk 0:00:19.5]} 41... Kd6 {[%clk
0:00:10.4]} 42. cxb4 {[%clk 0:00:16.5]} 42... Rxb4 {[%clk 0:00:10]} 43. Rc3
{[%clk 0:00:16.5]} 43... d4 {[%clk 0:00:10.6]} 44. Rd3 {[%clk 0:00:16]} 44...
Kd5 {[%clk 0:00:11.1]} 45. Kf3 {[%clk 0:00:16.2]} 45... a5 {[%clk 0:00:11.4]}
46. Ke2 {[%clk 0:00:15]} 46... Ke4 {[%clk 0:00:11.5]} 47. Kd2 {[%clk 0:00:15.2]}
47... Rb6 {[%clk 0:00:11.4]} 48. Kc2 {[%clk 0:00:14.6]} 48... Rc6+ {[%clk
0:00:11.4]} 49. Kd2 {[%clk 0:00:14.8]} 49... Rc5 {[%clk 0:00:11.7]} 50. b4
{[%clk 0:00:12.3]} 50... axb4 {[%clk 0:00:11.2]} 51. Rb3 {[%clk 0:00:12.3]}
51... Rc3 {[%clk 0:00:11.1]} 52. Rxb4 {[%clk 0:00:11.7]} 52... Rxg3 {[%clk
0:00:11.7]} 53. Rb5 {[%clk 0:00:11.1]} 53... Rg2+ {[%clk 0:00:11.6]} 54. Kc1
{[%clk 0:00:10.1]} 54... Ra2 {[%clk 0:00:10.8]} 55. Re5+ {[%clk 0:00:09.5]}
55... Kxf4 {[%clk 0:00:11.1]} 56. Rxe6 {[%clk 0:00:09.4]} 56... Kg4 {[%clk
0:00:11.3]} 57. Rd6 {[%clk 0:00:08.6]} 57... Rxa4 {[%clk 0:00:10.7]} 58. Rd5
{[%clk 0:00:08.7]} 58... f4 {[%clk 0:00:10.5]} 59. Kd2 {[%clk 0:00:08.4]} 59...
Kxh4 {[%clk 0:00:10.5]} 60. Kd3 {[%clk 0:00:08.5]} 60... Kg4 {[%clk 0:00:10.6]}
61. Ke4 {[%clk 0:00:08.6]} 61... Ra1 {[%clk 0:00:09.4]} 62. Rxd4 {[%clk
0:00:07.9]} 62... Re1+ {[%clk 0:00:09.3]} 63. Kd3 {[%clk 0:00:07.7]} 63... Kf3
{[%clk 0:00:09.3]} 64. Rd8 {[%clk 0:00:06.4]} 64... Rd1+ {[%clk 0:00:09.1]} 0-1

[Event "*** Titled Tuesday Blitz"]
[Site "Chess.com"]
[Date "2020.10.20"]
[Round "9"]
[White "maximnovik"]
[Black "boasovietica"]
[Result "1/2-1/2"]
[WhiteElo "2513"]
[BlackElo "2395"]
[TimeControl "180+1"]
[EndTime "11:49:02 PDT"]
[Termination "Game drawn - insufficient material"]

1. d4 {[%clk 0:02:36]} 1... Nf6 {[%clk 0:02:59.2]} 2. c4 {[%clk 0:02:35.2]} 2...
g6 {[%clk 0:02:57.8]} 3. Nc3 {[%clk 0:02:35.3]} 3... Bg7 {[%clk 0:02:58.2]} 4.
g3 {[%clk 0:02:35.8]} 4... O-O {[%clk 0:02:58]} 5. Bg2 {[%clk 0:02:36.3]} 5...
c5 {[%clk 0:02:57.7]} 6. d5 {[%clk 0:02:35.3]} 6... e6 {[%clk 0:02:56.9]} 7. Nf3
{[%clk 0:02:34.9]} 7... exd5 {[%clk 0:02:57.2]} 8. cxd5 {[%clk 0:02:35.4]} 8...
d6 {[%clk 0:02:57.4]} 9. O-O {[%clk 0:02:35.4]} 9... a6 {[%clk 0:02:57.6]} 10.
a4 {[%clk 0:02:34.5]} 10... Re8 {[%clk 0:02:57.9]} 11. Bf4 {[%clk 0:02:34.1]}
11... Ne4 {[%clk 0:02:57.3]} 12. Nxe4 {[%clk 0:02:33.4]} 12... Rxe4 {[%clk
0:02:58.2]} 13. Nd2 {[%clk 0:02:31.6]} 13... Rb4 {[%clk 0:02:58.4]} 14. b3
{[%clk 0:02:25.8]} 14... Rxf4 {[%clk 0:02:52.4]} 15. gxf4 {[%clk 0:02:25]} 15...
Nd7 {[%clk 0:02:02.9]} 16. Rb1 {[%clk 0:02:19.6]} 16... Rb8 {[%clk 0:02:00.9]}
17. b4 {[%clk 0:02:18.6]} 17... b5 {[%clk 0:01:58.9]} 18. axb5 {[%clk
0:02:16.5]} 18... axb5 {[%clk 0:01:54.5]} 19. Nb3 {[%clk 0:02:16.2]} 19... Qf6
{[%clk 0:01:20.3]} 20. e3 {[%clk 0:02:15.1]} 20... Qc3 {[%clk 0:01:02.3]} 21.
Na5 {[%clk 0:02:02.9]} 21... cxb4 {[%clk 0:00:53.9]} 22. Nc6 {[%clk 0:02:01.5]}
22... Ra8 {[%clk 0:00:54.2]} 23. Nxb4 {[%clk 0:02:01.1]} 23... Nc5 {[%clk
0:00:52.3]} 24. Nc6 {[%clk 0:01:57.5]} 24... Kf8 {[%clk 0:00:43.4]} 25. Rxb5
{[%clk 0:01:49.4]} 25... Bf5 {[%clk 0:00:34.5]} 26. Qc1 {[%clk 0:01:40.9]} 26...
Bd3 {[%clk 0:00:29.6]} 27. Qxc3 {[%clk 0:01:28.1]} 27... Bxc3 {[%clk 0:00:30.5]}
28. Rc1 {[%clk 0:01:24.9]} 28... Bxb5 {[%clk 0:00:27.4]} 29. Rxc3 {[%clk
0:01:19.9]} 29... Ra1+ {[%clk 0:00:26.9]} 30. Bf1 {[%clk 0:01:19.1]} 30... Bxf1
{[%clk 0:00:27.1]} 31. f3 {[%clk 0:01:18.7]} 31... Bc4+ {[%clk 0:00:26.5]} 32.
Kf2 {[%clk 0:01:18.3]} 32... Bxd5 {[%clk 0:00:26.9]} 33. Nd4 {[%clk 0:01:15]}
33... Ra2+ {[%clk 0:00:26.7]} 34. Kg3 {[%clk 0:01:14.4]} 34... h5 {[%clk
0:00:25.1]} 35. h4 {[%clk 0:01:13]} 35... Kg7 {[%clk 0:00:22.6]} 36. f5 {[%clk
0:01:12.3]} 36... Kf6 {[%clk 0:00:21.5]} 37. Kf4 {[%clk 0:01:06.3]} 37... Rd2
{[%clk 0:00:19.6]} 38. Ra3 {[%clk 0:01:03.7]} 38... Rd3 {[%clk 0:00:19.1]} 39.
Ra7 {[%clk 0:00:59]} 39... Rc3 {[%clk 0:00:18.4]} 40. e4 {[%clk 0:00:55.7]}
40... Nd3+ {[%clk 0:00:15.4]} 41. Kg3 {[%clk 0:00:49]} 41... Bc4 {[%clk
0:00:15.3]} 42. Rc7 {[%clk 0:00:42]} 42... Ne5 {[%clk 0:00:14.6]} 43. Kg2 {[%clk
0:00:37.7]} 43... Rd3 {[%clk 0:00:13.9]} 44. Nc6 {[%clk 0:00:29.8]} 44... Rd2+
{[%clk 0:00:10.3]} 45. Kg3 {[%clk 0:00:29.1]} 45... Nxc6 {[%clk 0:00:10]} 46.
Rxc6 {[%clk 0:00:28.4]} 46... Be2 {[%clk 0:00:10.3]} 47. Kf4 {[%clk 0:00:26.7]}
47... Rd3 {[%clk 0:00:10.2]} 48. e5+ {[%clk 0:00:26.5]} 48... Kg7 {[%clk
0:00:09.9]} 49. exd6 {[%clk 0:00:21.5]} 49... Bxf3 {[%clk 0:00:07.1]} 50. Rb6
{[%clk 0:00:20.6]} 50... Bg4 {[%clk 0:00:06.6]} 51. fxg6 {[%clk 0:00:18.6]}
51... fxg6 {[%clk 0:00:06.2]} 52. Ke5 {[%clk 0:00:18.4]} 52... Re3+ {[%clk
0:00:06]} 53. Kf4 {[%clk 0:00:18.1]} 53... Re1 {[%clk 0:00:06.2]} 54. Rb7+
{[%clk 0:00:17.2]} 54... Kf6 {[%clk 0:00:06.1]} 55. Rb6 {[%clk 0:00:15.3]} 55...
Rd1 {[%clk 0:00:05.9]} 56. d7+ {[%clk 0:00:13.4]} 56... Kf7 {[%clk 0:00:06.2]}
57. Kg5 {[%clk 0:00:09.2]} 57... Rxd7 {[%clk 0:00:06]} 58. Rxg6 {[%clk
0:00:08.1]} 58... Rd5+ {[%clk 0:00:04.3]} 59. Kh6 {[%clk 0:00:08.3]} 59... Re5
{[%clk 0:00:03.3]} 60. Rg7+ {[%clk 0:00:08.1]} 60... Kf8 {[%clk 0:00:03.6]} 61.
Rg6 {[%clk 0:00:06.9]} 61... Re6 {[%clk 0:00:03.7]} 62. Rxe6 {[%clk 0:00:06.8]}
62... Bxe6 {[%clk 0:00:04.5]} 63. Kxh5 {[%clk 0:00:07.3]} 63... Kg7 {[%clk
0:00:05.1]} 64. Kg5 {[%clk 0:00:07.8]} 64... Kh7 {[%clk 0:00:05.7]} 65. h5
{[%clk 0:00:08.4]} 65... Bf7 {[%clk 0:00:06.6]} 66. h6 {[%clk 0:00:08.8]} 66...
Be8 {[%clk 0:00:07]} 67. Kf6 {[%clk 0:00:08.9]} 67... Kxh6 {[%clk 0:00:07.9]}
1/2-1/2

[Event "*** Titled Tuesday Blitz"]
[Site "Chess.com"]
[Date "2020.10.20"]
[Round "9"]
[White "Shahinyan_ChessMood"]
[Black "GM_Levan_Pantsulaia"]
[Result "0-1"]
[WhiteElo "2732"]
[BlackElo "2862"]
[TimeControl "180+1"]
[EndTime "11:49:06 PDT"]
[Termination "GM_Levan_Pantsulaia won by resignation"]

1. e4 {[%clk 0:03:00.9]} 1... c5 {[%clk 0:03:00.1]} 2. Nc3 {[%clk 0:03:00.8]}
2... a6 {[%clk 0:02:58.5]} 3. g3 {[%clk 0:03:01.4]} 3... b5 {[%clk 0:02:57.9]}
4. Bg2 {[%clk 0:03:02.1]} 4... Bb7 {[%clk 0:02:56.5]} 5. d3 {[%clk 0:03:02.7]}
5... g6 {[%clk 0:02:51.9]} 6. Be3 {[%clk 0:03:01.1]} 6... d6 {[%clk 0:02:49.4]}
7. Qd2 {[%clk 0:03:00.7]} 7... Bg7 {[%clk 0:02:46.2]} 8. Nge2 {[%clk 0:03:00.7]}
8... b4 {[%clk 0:02:42.3]} 9. Nd1 {[%clk 0:03:00.4]} 9... a5 {[%clk 0:02:41.3]}
10. O-O {[%clk 0:02:56.3]} 10... Nd7 {[%clk 0:02:35.6]} 11. f4 {[%clk
0:02:53.9]} 11... h5 {[%clk 0:02:22]} 12. h3 {[%clk 0:02:53.5]} 12... Qb6 {[%clk
0:02:11.6]} 13. f5 {[%clk 0:02:47.2]} 13... gxf5 {[%clk 0:02:05.7]} 14. Rxf5
{[%clk 0:02:41.6]} 14... e6 {[%clk 0:02:00.8]} 15. Rf2 {[%clk 0:02:29.4]} 15...
Ne7 {[%clk 0:02:00.7]} 16. a3 {[%clk 0:02:27.7]} 16... Ne5 {[%clk 0:01:56.5]}
17. axb4 {[%clk 0:02:25]} 17... axb4 {[%clk 0:01:55.4]} 18. Rxa8+ {[%clk
0:02:25.9]} 18... Bxa8 {[%clk 0:01:56.3]} 19. b3 {[%clk 0:02:15.6]} 19... N5g6
{[%clk 0:01:46.6]} 20. Bg5 {[%clk 0:02:11.6]} 20... Nc6 {[%clk 0:01:41.6]} 21.
Ne3 {[%clk 0:02:09.2]} 21... Nce5 {[%clk 0:01:36.4]} 22. Nf4 {[%clk 0:01:46.8]}
22... h4 {[%clk 0:01:35.3]} 23. g4 {[%clk 0:01:40.5]} 23... Nxf4 {[%clk
0:01:35.2]} 24. Rxf4 {[%clk 0:01:30.5]} 24... Bc6 {[%clk 0:01:29.3]} 25. Kh1
{[%clk 0:01:25.5]} 25... Qa7 {[%clk 0:01:23.1]} 26. Rf1 {[%clk 0:01:20.7]} 26...
Bb5 {[%clk 0:01:21.9]} 27. Qf2 {[%clk 0:01:18.7]} 27... Ng6 {[%clk 0:01:19.4]}
28. Bf6 {[%clk 0:01:17.1]} 28... Bxf6 {[%clk 0:01:11.1]} 29. Qxf6 {[%clk
0:01:18]} 29... Qe7 {[%clk 0:01:11]} 30. Qg7 {[%clk 0:00:56.3]} 30... Qf8 {[%clk
0:01:11.1]} 31. Qf6 {[%clk 0:00:55.4]} 31... Qe7 {[%clk 0:01:10.7]} 32. Qg7
{[%clk 0:00:51.5]} 32... Qf8 {[%clk 0:01:09.1]} 33. Qa1 {[%clk 0:00:51.8]} 33...
Qe7 {[%clk 0:01:04.3]} 34. Qa8+ {[%clk 0:00:49]} 34... Qd8 {[%clk 0:01:00.2]}
35. Qxd8+ {[%clk 0:00:43.5]} 35... Kxd8 {[%clk 0:01:01.1]} 36. Rxf7 {[%clk
0:00:43.7]} 36... Ne5 {[%clk 0:01:01.1]} 37. Rf1 {[%clk 0:00:40.9]} 37... Ke7
{[%clk 0:00:56.4]} 38. Kg1 {[%clk 0:00:24.2]} 38... Nc6 {[%clk 0:00:56.3]} 39.
Ra1 {[%clk 0:00:20.5]} 39... Nd4 {[%clk 0:00:51.1]} 40. Ra7+ {[%clk 0:00:20.2]}
40... Kf6 {[%clk 0:00:49]} 41. Rb7 {[%clk 0:00:17.5]} 41... Ra8 {[%clk
0:00:43.9]} 42. Rh7 {[%clk 0:00:12.5]} 42... Ra2 {[%clk 0:00:40.2]} 43. Rxh4
{[%clk 0:00:12.3]} 43... Kg5 {[%clk 0:00:26.9]} 44. Rh8 {[%clk 0:00:10.2]} 44...
Kf4 {[%clk 0:00:26.5]} 45. Nf1 {[%clk 0:00:07.4]} 45... Rxc2 {[%clk 0:00:23.2]}
46. Rf8+ {[%clk 0:00:07.4]} 46... Ke5 {[%clk 0:00:23.1]} 47. g5 {[%clk
0:00:06.5]} 47... Bxd3 {[%clk 0:00:18.7]} 48. g6 {[%clk 0:00:06.8]} 48... Rxg2+
{[%clk 0:00:14.3]} 49. Kxg2 {[%clk 0:00:06.5]} 49... Bxe4+ {[%clk 0:00:15.2]}
50. Kg3 {[%clk 0:00:06.8]} 50... Bxg6 {[%clk 0:00:15.8]} 51. Ne3 {[%clk
0:00:04.2]} 51... d5 {[%clk 0:00:15.6]} 52. Ng4+ {[%clk 0:00:04.3]} 52... Kd6
{[%clk 0:00:15.7]} 53. h4 {[%clk 0:00:04.8]} 53... Nxb3 {[%clk 0:00:15.4]} 54.
Rf6 {[%clk 0:00:03.5]} 54... Be4 {[%clk 0:00:12.7]} 55. h5 {[%clk 0:00:03.9]}
55... c4 {[%clk 0:00:12.9]} 56. Nf2 {[%clk 0:00:04.5]} 56... Bb1 {[%clk
0:00:10.7]} 57. h6 {[%clk 0:00:05.1]} 57... Nc5 {[%clk 0:00:10.6]} 58. Rf8
{[%clk 0:00:01.5]} 58... b3 {[%clk 0:00:10.5]} 59. Ra8 {[%clk 0:00:02.1]} 59...
b2 {[%clk 0:00:09.9]} 60. Rb8 {[%clk 0:00:01.9]} 60... c3 {[%clk 0:00:09.5]} 61.
Kg2 {[%clk 0:00:01.5]} 61... Bf5 {[%clk 0:00:08.4]} 62. Rf8 {[%clk 0:00:01.1]}
62... b1=Q {[%clk 0:00:08.4]} 0-1